Cogmind - Beta 15 @@@ ROGUE MODE // 2025.09.10 @ 05:35:09 Player: konomiyu Result: Destroyed by D-53 Grenadier with Mini Grenade Launcher Performance ------------- Evolutions (0) 0 Regions Visited (2) 400 Robots Destroyed (21) 105 Value Destroyed (473) 473 Prototype IDs (4) 80 Alien Tech Used (0) 0 Bonus (0) 0 TOTAL SCORE: 1058 Bonus ------- None Cogmind --------- Core Integrity 0/250 Matter 253/300 Energy 265/265 System Corruption 0% Temperature Cool (0) Movement Treading (240) Ox1 Location -10/Mines Parts ------- > --- POWER (1) -------- Improved Ion Engine > --- PROPULSION (2) --- Light Treads > --- UTILITY (2) ------ Large Storage Unit Transport Network Coupler > --- WEAPON (2) ------- Improved Assault Rifle Improved Assault Rifle > --- INVENTORY (15) --- Improved Ion Engine Improved Ion Engine Light Treads Light Treads Heat Sink Huge Storage Unit Medium Matter Pod (100) Signal Interpreter Hacking Suite Improved Assault Rifle Improved Assault Rifle Mini Grenade Launcher Mini Grenade Launcher Datajack Mining Laser Peak State ------------ > --- POWER ------------ Improved Ion Engine > --- PROPULSION ------- Light Treads Light Treads > --- UTILITY ---------- Large Storage Unit Transport Network Coupler > --- WEAPON ----------- Improved Assault Rifle Improved Assault Rifle > --- INVENTORY -------- Improved Ion Engine Improved Ion Engine Aluminum Leg Aluminum Leg Heat Sink Huge Storage Unit Medium Matter Pod Signal Interpreter Improved Assault Rifle Improved Assault Rifle Light Cannon Mini Grenade Launcher Mini Grenade Launcher Datajack [Rating: 14] Favorites ----------- Power Improved Ion Engine Engine Improved Ion Engine Propulsion Light Treads Treads Light Treads Leg Aluminum Leg Utility Large Storage Unit Storage Large Storage Unit Processor Transport Network Coupler Weapon Improved Assault Rifle Energy Gun Medium Laser Ballistic Gun Improved Assault Rifle Ballistic Cannon Light Cannon Launcher Mini Grenade Launcher Special Melee Weapon Datajack Build | -11 -10 -10 ------- Run | Yrd Mat Min Slots Evolved . | . . . Power . | . . . Propulsion . | . . . Utility . | . . . Weapon . | . . . Parts Attached 17 | 8 9 . Power 2 | 1 1 . Engine 2 | 1 1 . Core . | . . . Reactor . | . . . Propulsion 3 | 3 . . Treads 2 | 2 . . Leg 1 | 1 . . Wheel . | . . . Hover . | . . . Flight . | . . . Utility 3 | 1 2 . Device . | . . . Storage 2 | 1 1 . Processor 1 | . 1 . Hackware . | . . . Protection . | . . . Artifact . | . . . Weapon 9 | 3 6 . Energy Gun 1 | 1 . . Energy Cannon . | . . . Ballistic Gun 5 | 2 3 . Ballistic Cannon 1 | . 1 . Launcher 1 | . 1 . Special Weapon . | . . . Impact Weapon . | . . . Slashing Weapon . | . . . Piercing Weapon . | . . . Special Melee Weapon 1 | . 1 . Unidentified Prototypes 1 | . 1 . Parts Lost 1 | . . 1 Power . | . . . Propulsion 1 | . . 1 Utility . | . . . Weapon . | . . . Highest Loss Streak 1 | . . 1 To Critical Strikes . | . . . Average Backups 11 | 3 11 15 Power 1 | . 1 2 Propulsion 2 | 1 2 2 Utility 3 | . 3 5 Weapon 3 | 1 3 5 Tool/Special . | . . . Unused Backups 13 | . 2 11 Power 3 | . 1 2 Propulsion 3 | . 1 2 Utility 5 | . . 5 Weapon 2 | . . 2 Tool/Special . | . . . Average Slot Usage (%) 89 | . 88 98 Engine 14 | . 14 14 Treads 27 | . 28 26 Storage 14 | . 14 14 Processor 3 | . 3 14 Ballistic Gun 23 | . 23 28 Ballistic Cannon 3 | . 3 . Peak Build Rating 14 | 6 14 14 Average Rating 10 | 4 10 13 On Entrance 6 | . 6 14 Naked Turns . | . . . Heaviest Build 33 | 12 33 33 Greatest Support 40 | 40 40 40 Greatest Overweight (x) 1 | . . 1 Average Overweight (x) . | . . . Largest Inventory Capacity 15 | 8 15 15 Average Capacity 12 | 6 12 15 Most Carried 15 | 5 15 15 Average Carried 11 | 3 11 15 Final Capacity 15 | 8 15 15 Final Carried 15 | 4 15 15 Class Distribution -------------------- 100% | Mutant Dominant Class ---------------- Mutant | -10/Materials Mutant | -10/Mines Resources | -11 -10 -10 ----------- Run | Yrd Mat Min Matter Collected 751 | 155 596 . Remotely . | . . . Salvage Created 577 | . 577 . Parts 42 | . 42 . Haulers Intercepted 2 | . 2 . Recyclers Shooed . | . . . Parts Field Recycled . | . . . Retrieved Matter . | . . . Parts Self-Destructed . | . . . Prevented . | . . . Kills | -11 -10 -10 ------- Run | Yrd Mat Min Combat Hostiles Destroyed 12 | . 12 . Guns 10 | . 10 . Cannons 1 | . 1 . AOE 1 | . 1 . Classes Destroyed 6 | . 6 . Worker 1 | . 1 . Hauler 2 | . 2 . Operator 4 | . 4 . Watcher 2 | . 2 . Swarmer 3 | . 3 . Grunt 9 | . 9 . Best Kill Streak 3 | . 3 . Combat Bots Only 3 | . 3 . Max Kills in Single Turn 1 | . 1 . Gunslinging . | . . . Exploded 1 | . 1 . Melee . | . . . Uniques/NPCs Destroyed . | . . . Combat | -11 -10 -10 -------- Run | Yrd Mat Min Hostile Shots Fired 68 | . 54 14 Missed 14 | . 14 . Hits 54 | . 40 14 Projectile 54 | . 40 14 AOE 15 | . . 15 Damage Taken 1013 | . 452 561 Core 295 | . 79 216 Absorbed by Shields . | . . . Core Remaining (%) 100 | 100 . . Volleys Fired 70 | . 67 3 Largest 2 | . 2 2 Hottest 60 | . 60 46 Shots Fired 137 | . 131 6 Gun 108 | . 102 6 Cannon 27 | . 27 . Launcher 2 | . 2 . Special . | . . . Kinetic 135 | . 129 6 Thermal . | . . . Explosive 2 | . 2 . Electromagnetic . | . . . Robot Hit Streak 13 | . 13 1 Robot Miss Streak 6 | . 6 2 Penetration Max . | . . . Secondary Targets . | . . . Shots Hit Robots 86 | . 84 2 Core Hits 36 | . 36 . Critical Kills . | . . . Critical Parts Destroyed . | . . . Critical Strikes . | . . . Melee Attacks 2 | . 2 . Impact . | . . . Slashing . | . . . Piercing . | . . . Sneak Attacks 2 | . 2 . Combat Hostiles . | . . . Follow-up Attacks . | . . . Damage Inflicted 1226 | . 1200 26 Guns 784 | . 758 26 Cannons 242 | . 242 . Explosions 191 | . 191 . Melee . | . . . Ramming 9 | . 9 . Kinetic 1026 | . 1000 26 Thermal . | . . . Explosive 191 | . 191 . Electromagnetic . | . . . Impact . | . . . Slashing . | . . . Piercing . | . . . Highest Corruption . | . . . Average Corruption . | . . . Corruption Purged . | . . . Corruption Blocked . | . . . Overload Shots . | . . . Overflow Damage 6 | . 6 . Projectiles . | . . . Explosions 6 | . 6 . Melee . | . . . Knockbacks . | . . . Impact . | . . . Kinetic . | . . . Secondary . | . . . Self-Inflicted Damage 5 | . 5 . Shots 1 | . 1 . Rammed 3 | . 3 . Targets Rammed 3 | . 3 . Kicked . | . . . Crushed . | . . . Highest Temperature 28 | . 28 . Average Temperature 10 | . 10 . Received Heat Transfer 204 | . 204 . Siege Activations . | . . . Martial Activations . | . . . Shielding Activations . | . . . Robots Disrupted . | . . . Combat Hostiles . | . . . Robots Corrupted . | . . . Combat Hostiles . | . . . Parts Fried . | . . . Impact Corruptions . | . . . Robots Melted . | . . . Combat Hostiles . | . . . Parts Melted . | . . . Heat Transferred . | . . . Parts Sabotaged . | . . . Parts Stolen . | . . . Parts Stripped . | . . . Power Chain Reactions . | . . . Alert | -11 -10 -10 ------- Run | Yrd Mat Min Maximum Alert Level . | . . . Low Security (%) 100 | 100 100 100 Level 1 . | . . . Level 2 . | . . . Level 3 . | . . . Level 4 . | . . . Level 5 . | . . . High Security . | . . . Max Security . | . . . Peak Influence 73 | . 73 . Initial . | . . . Average 20 | . 22 . Influence Increases 426 | . 426 . Destroy 0b10 Robot/C 240 | . 240 . Destroy 0b10 Robot/NC 45 | . 45 . Destroy Leader 68 | . 68 . Successful Hack 12 | . 12 . Disable Machine 15 | . 15 . Destroy Structure 16 | . 16 . Lose Combat Pursuer 30 | . 30 . Influence Decreases 426 | . 425 1 Entered New Map 1 | . . 1 Time Decay 425 | . 425 . Squads Dispatched 3 | . 3 . Investigation . | . . . Extermination . | . . . Reinforcement 3 | . 3 . Assault . | . . . Garrison . | . . . Intercept . | . . . Searches Triggered . | . . . Construction Impeded . | . . . Haulers Reinforced . | . . . Active Scanning Responses . | . . . Cargo Convoy Interrupts . | . . . Stealth | -11 -10 -10 --------- Run | Yrd Mat Min Distress Signals 1 | . 1 . Communications Jammed . | . . . Distress Signals . | . . . Times Spotted 32 | . 30 2 Peak Tracking Total 3 | . 3 2 Tactical Retreats 2 | . 2 . Traps | -11 -10 -10 ------- Run | Yrd Mat Min Traps Triggered . | . . . Indirectly . | . . . Trap Hack Attempts . | . . . Triggered . | . . . Disarmed . | . . . Reprogrammed . | . . . Reused . | . . . Traps Extracted . | . . . Installed . | . . . Triggered . | . . . Machines | -11 -10 -10 ---------- Run | Yrd Mat Min Machines Disabled 1 | . 1 . Max in Single Turn 1 | . 1 . Machines Repaired . | . . . Machines Dismantled . | . . . Machines Sabotaged . | . . . Overloaded Fab Kills . | . . . Hacking | -11 -10 -10 --------- Run | Yrd Mat Min Machines Accessed 5 | . 5 . Terminals 5 | . 5 . Fabricators . | . . . Repair Stations . | . . . Recycling Units . | . . . Scanalyzers . | . . . Garrison Access . | . . . Total Hacks 13 | . 13 . Successful 5 | . 5 . Failed 8 | . 8 . Catastrophic 1 | . 1 . Database Lockouts . | . . . Manual 16 | . 16 . Terminals 13 | . 13 . Fabricators . | . . . Repair Stations . | . . . Recycling Units . | . . . Scanalyzers . | . . . Garrison Access . | . . . Terminal Hacks 5 | . 5 . Robot Analysis 3 | . 3 . Prototype ID Bank 2 | . 2 . Fabricator Hacks . | . . . Repair Station Hacks . | . . . Recycling Unit Hacks . | . . . Scanalyzer . | . . . Garrison Access Hacks . | . . . Unauthorized Hacks . | . . . Terminals . | . . . Fabricators . | . . . Repair Stations . | . . . Recycling Units . | . . . Scanalyzers . | . . . Garrison Access . | . . . Data Cores Recovered . | . . . Used . | . . . Hacking Detections 5 | . 5 . Full Trace Events 1 | . 1 . Feedback Events . | . . . Feedback Blocked . | . . . Robot Schematics Acquired . | . . . Robots Built . | . . . Authchips . | . . . Time . | . . . Total Robot Build Rating . | . . . Part Schematics Acquired . | . . . Parts Built . | . . . Authchips . | . . . Time . | . . . Total Part Build Rating . | . . . Parts Repaired . | . . . Time . | . . . Parts Recycled . | . . . Recycled Matter . | . . . Retrieved Matter . | . . . Retrieved Components . | . . . Parts Scanalyzed . | . . . Part Schematics Acquired . | . . . Parts Damaged . | . . . Bothacking | -11 -10 -10 ------------ Run | Yrd Mat Min Used RIF Installer . | . . . Robots Hacked 1 | . 1 . Non-combat 1 | . 1 . Combat . | . . . Robot Hacks Applied 2 | . 2 . no_distress 1 | . 1 . check_alert 1 | . 1 . Relay Couplers Released . | . . . Fabnet Peak Effective % . | . . . Robots Rewired . | . . . Allies Hacked . | . . . Hacks Repelled . | . . . Allies | -11 -10 -10 -------- Run | Yrd Mat Min Total Allies . | . . . Largest Group . | . . . Highest-Rated Group . | . . . Highest-Rated Ally . | . . . Total Orders . | . . . Ally Attacks . | . . . Total Damage . | . . . Kills . | . . . Allies Corrupted . | . . . Allies Melted . | . . . Intel | -11 -10 -10 ------- Run | Yrd Mat Min Active Infowar (turns) 512 | . 403 109 T.N.C. 512 | . 403 109 Robot Analysis Total 3 | . 3 . Derelict Logs Recovered . | . . . Drone Launches . | . . . Drone Recoveries . | . . . Exploration | -11 -10 -10 ------------- Run | Yrd Mat Min Turns Passed 1875 | 60 1706 109 Spaces Moved 939 | 35 841 63 Core 10 | 10 . . Treads 927 | 23 841 63 Legs 2 | 2 . . Wheels . | . . . Hover . | . . . Flight . | . . . Fastest Speed 50 | 50 160 160 Average Speed 158 | 126 160 161 Slowest Speed 240 | 160 160 240 Overloaded Moves . | . . . Propulsion Burnouts . | . . . Robots Hopped . | . . . Potential Cave-ins . | . . . Cave-ins Triggered . | . . . Exploration Rate (%) 42 | 4 96 27 Regions Visited 2 Branch Regions 1 Pre-discovered Areas . | . . . Known Exits Taken . | . . . Unknown Exits Taken 2 | 1 1 . Scrap Searched . | . . . Spaces Dug 7 | . 7 . Terrain Destroyed 15 | . 15 . Melee . | . . . Projectile . | . . . AOE 15 | . 15 . Terrain Rammed . | . . . Walls Destroyed . | . . . Machines Disabled . | . . . Actions | -11 -10 -10 --------- Run | Yrd Mat Min Total 1194 | 48 1080 66 Wait 128 | . 128 . Move 937 | 34 840 63 Hop . | . . . Pick Up 26 | 6 20 . Fast Attach 5 | 4 1 . Attach 3 | 2 1 . Detach 1 | . 1 . Swap 10 | 2 8 . Drop 9 | . 9 . Fire 70 | . 67 3 Melee 2 | . 2 . Ram . | . . . Kick . | . . . Crush 3 | . 3 . Escape Stasis . | . . . Rewire . | . . . Trap . | . . . Miscellaneous . | . . . Route ------- -11/Scrapyard -10/Materials (discovered 5 exits: [*Mat x3] / [*Min x2]) -10/Mines History --------- Turn | Location | Event 14 | -11/Scrapyard | Discovered new exit (range 15) 61 | -11/Scrapyard | Entered Materials 309 | -10/Materials | Build established: Mutant 344 | -10/Materials | Discovered new exit (range 13) 518 | -10/Materials | Discovered new exit (range 10) 838 | -10/Materials | Discovered new exit (range 8) 1188 | -10/Materials | Discovered new exit (range 10) 1461 | -10/Materials | Discovered new exit (range 14) 1767 | -10/Materials | Entered Mines 1808 | -10/Mines | Met a Derelict bent on vengeance 1832 | -10/Mines | Assembled infested the area 1837 | -10/Mines | Assisted by a Guerilla fighting off Assembled 1860 | -10/Mines | Found a hidden stash of uninstalled traps 1866 | -10/Mines | Core integrity fell below 50% 1870 | -10/Mines | Core integrity fell below 20% 1876 | -10/Mines | Destroyed by D-53 Grenadier with Mini Grenade Launcher Last Messages --------------- 01832_ ALERT: Infestation in the mines, dispatching Demolisher response squad. 01837_ A derelict emerges from the shadows: "You need to get out of here! I've been tracking a group of Assembled to figure out where they're coming from, and they're closing on this area, come on!" 01850_ K-01 Serf collects debris. 01852_ EL-5MF(h): "I'll hold them off! Go on ahead or try to find another way!" 01853_ K-01 Serf destroyed. 01854_ HV Slug penetrates D-53 Grenadier. 01856_ The unstable cave ceiling collapses. 01857_ EL-5MF(h) destroyed. 01860_ A stash of uninstalled traps is collected here! 01863_ The unstable cave ceiling collapses. 01869_ Lgt. Treads destroyed. 01870_ The unstable cave ceiling collapses. 01876_ U-05 Engineer lays Concrete. Map ----- +----------------------------------------------------+ | ?## #######???????????????????????????????????? | | ## # #???????????????????????????????????? | | # #???????????????????????????????????? | | ## #???????????????????????????????????? | | ## #???????????????????????????????????? | | ## #???????????????????????????????????? | | ## #### #???????????????????????????????????? | | ?# #??# ???????????????????????????????? | | ?# #??# ######??????????????????????????????? | | ?# #??#### ##???????????????????????????????????? | | ?# #?????? #????????????????????????????????????? | | ## #?????? #????????????????????????????????????? | | #?????? #??????????????#?????????????????????? | | ## #???????#####?????????? ???? ????????????????? | | ?# #???????? #?????????*#??? #????????????????? | | ?# #????????# #####????? #??? #????????????????? | | ?# #????????# ? #????? ##? #????????????????? | | ## #????????# #?# #????? ## #????????????????? | | #????????# ### #????? < ##???????????????? | | #?????#### # ##???? #???????????????? | | ## #????## ##### ????????????????? | | ## ###### ??????????????????? | | ?# ##??????????????????? | | ?# #??????????????????? | | ?############# ##??????????????????? | | ?????????????## @ #??????????????????? | | ??????????????## #??????????????????? | | ???????????????# #??????????????????? | | ?????????????#### ##??????????????????? | | ?????????????# #??????????????????? | | ????????????# ## d ### #?????????????????? | | ???????????# ## #? X????????????????? | | ??????????# d # ? u ???????????????? | | ??????????#"% % ## ??????????????? | | ??????????#% # ##?# ?????????????? | | ????????? ##??? ????????????? | | ????????### #????? ????????????? | | ??????????#### # # ##?????? ??????????????? | | ?????????????######## ?###??????????????????????? | | ?????????????????????##??????????????????????????? | | ?????????????????????????????????????????????????? | | ?????????????????????????????????????????????????? | | ?????????????????????????????????????????????????? | | ?????????????????????????????????????????????????? | | ?????????????????????????????????????????????????? | | ?????????????????????????????????????????????????? | | ?????????????????????????????????????????????????? | | ?????????????????????????????????????????????????? | | ?????????????????????????????????????????????????? | | ?????????????????????????????????????????????????? | +----------------------------------------------------+ Best States ------------- Heat Dissipation 25 Energy Generation 12 Energy Capacity 265 Matter Stores 300 Matter Capacity 300 Sight Range 16 Terrain Scan Density 10 Evasion (%) 50 Recoil Reduction 2 Item Schematics ----------------- None Robot Schematics ------------------ None Fabricated ------------ Nothing Repaired ---------- Nothing Alien Tech Used ----------------- None Achievements -------------- None Challenges ------------ None Game ------ Seed AngularReflectiveWeb Manual? 0 Play Time 00:33:40 Cumulative 13.4 hours Start 2025.09.10 @ 04:13:54 End 2025.09.10 @ 05:35:09 Sessions 3 Manual Loads 0 Difficulty Rogue Special Mode None Game No. 17 Rogue 17 Adventurer 0 Explorer 0 Win Type - Total 0 Types 0/0/0/0/0/0/0/0/0/0 Lore% 10 Gallery% 12 Achievement% 16 Wizard Run 0 Options --------- Layout 1 ASCII 0 Keyboard 0 Movement Mouse Keybinds 0 Fullscreen 2 Font 24/Smallcaps Map View 50x35 Zoom Use 0% Tactical HUD 1 Map Filters NONE Filters NONE Steam 1 RUN: 4f91292d-d690-440e-8b4b-d8dd1a3fbf19